[Event "EYCC Girls-U18 2019"]
[Site "Bratislava"]
[Date "2019.08.10"]
[Round "9.16"]
[White "Kostecka, Marika"]
[Black "Urh, Zala"]
[Result "0-1"]
[ECO "C89"]
[WhiteElo "1924"]
[BlackElo "2072"]
[Annotator "NA"]
[PlyCount "130"]
[EventDate "2019.08.02"]
[EventType "swiss"]
[EventCountry "SVK"]
[SourceTitle "playchess.com"]
[Source "ChessBase"]
[SourceQuality "1"]
[TimeControl "40/5400+30:1800+30"]

1. e4 {[%emt 0:01:54]} e5 {[%emt 0:00:00]} 2. Nf3 {[%emt 0:00:11]} Nc6 {[%emt 0:00:00]} 3. Bb5 {[%emt 0:00:03]} a6 {[%emt 0:00:00]} 4. Ba4 {[%emt 0:00:05]} Nf6 {[%emt 0:00:00]} 5. O-O {[%emt 0:00:06]} Be7 {[%emt 0:00:04]} 6. Re1 {[%emt 0:00:10]} b5 {[%emt 0:00:19]} 7. Bb3 {[%emt 0:00:05]} O-O {[%emt 0:00:11]} 8. c3 {[%emt 0:00:08]} d5 {[%emt 0:00:52]} 9. d4 {[%emt 0:00:08]} dxe4 {[%emt 0:12:01]} 10. Nxe5 {[%emt 0:00:48]} Bb7 {[%emt 0:03:29]} 11. Bf4 {[%emt 0:10:20]} Nd5 {[%emt 0:12:42]} 12. Rxe4 {[%emt 0:15:25]} Nxf4 {[%emt 0:07:32]} 13. Nxf7 {[%emt 0:02:23]} Nh3+ {[%emt 0:05:35]} 14. gxh3 {[%emt 0:00:06]} Rxf7 {[%emt 0:00:06]} 15. Rf4 {[%emt 0:10:42]} Bf6 {[%emt 0:00:56]} 16. Qh5 {[%emt 0:06:09]} Qe7 {[%emt 0:04:02]} 17. Qxf7+ {[%emt 0:11:37]} Qxf7 {[%emt 0:00:05]} 18. Bxf7+ {[%emt 0:00:10]} Kxf7 {[%emt 0:00:17]} 19. Nd2 {[%emt 0:03:46]} Ne7 {[%emt 0:05:03]} 20. Re1 {[%emt 0:06:10]} g5 {[%emt 0:04:34]} 21. Rg4 {[%emt 0:04:52]} Nf5 {[%emt 0:04:26]} 22. f3 {[%emt 0:05:56]} Nh4 {[%emt 0:08:10]} 23. Rg3 {[%emt 0:03:34]} Rd8 {[%emt 0:02:49]} 24. Ne4 {[%emt 0:03:41]} Be7 {[%emt 0:00:23]} 25. Kf2 {[%emt 0:01:30]} h6 {[%emt 0:00:17]} 26. Rg4 {[%emt 0:05:50]} Bc8 {[%emt 0:04:31]} 27. Rg3 {[%emt 0:00:20]} Ng6 {[%emt 0:00:46]} 28. Ke3 {[%emt 0:04:31]} Nf4 {[%emt 0:05:10]} 29. h4 {[%emt 0:01:33]} Nd5+ {[%emt 0:02:08]} 30. Kd2 {[%emt 0:00:40]} gxh4 {[%emt 0:00:03]} 31. Rg2 {[%emt 0:00:27]} h3 {[%emt 0:01:19]} 32. Rgg1 {[%emt 0:01:09]} Nf4 {[%emt 0:00:59]} 33. Ng3 {[%emt 0:00:45]} c5 {[%emt 0:03:22]} 34. Re4 {[%emt 0:00:13]} Bg5 {[%emt 0:00:09]} 35. Ne2 {[%emt 0:01:14]} Nxe2+ {[%emt 0:04:55]} 36. Kxe2 {[%emt 0:00:07]} Bb7 {[%emt 0:00:10]} 37. Re5 {[%emt 0:00:55]} cxd4 {[%emt 0:00:38]} 38. Rd1 {[%emt 0:00:38]} dxc3 {[%emt 0:02:49]} 39. Rxd8 {[%emt 0:00:05]} Bxd8 {[%emt 0:00:06]} 40. bxc3 {[%emt 0:00:00]} Bc7 {[%emt 0:00:00]} 41. Rh5 {[%emt 0:03:56]} Bxh2 {[%emt 0:04:56]} 42. Rxh3 {[%emt 0:00:17]} Bf4 {[%emt 0:00:09]} 43. Rh4 {[%emt 0:01:57]} Bg5 {[%emt 0:00:09]} 44. Rg4 {[%emt 0:04:03]} Bd5 {[%emt 0:02:36]} 45. a4 {[%emt 0:00:23]} Bc4+ {[%emt 0:00:10]} 46. Ke1 {[%emt 0:01:06]} Bf6 {[%emt 0:00:52]} 47. Kd2 {[%emt 0:00:07]} h5 {[%emt 0:00:10]} 48. Re4 {[%emt 0:02:25]} h4 {[%emt 0:00:23]} 49. axb5 {[%emt 0:00:42]} axb5 {[%emt 0:00:14]} 50. Rg4 {[%emt 0:05:21]} h3 {[%emt 0:00:46]} 51. Rg1 {[%emt 0:00:33]} h2 {[%emt 0:01:12]} 52. Rh1 {[%emt 0:00:45]} Be5 {[%emt 0:00:06]} 53. Ke3 {[%emt 0:01:15]} Bg3 {[%emt 0:00:17]} 54. Ke4 {[%emt 0:02:49]} Ke6 {[%emt 0:00:48]} 55. Rd1 {[%emt 0:01:03]} Bf2 {[%emt 0:00:31]} 56. Ra1 {[%emt 0:02:36]} Ke7 {[%emt 0:02:47]} 57. Rh1 {[%emt 0:00:14]} Bg1 {[%emt 0:00:05]} 58. Kf4 {[%emt 0:00:47]} Kf6 {[%emt 0:00:16]} 59. Kg4 {[%emt 0:00:42]} Bf1 {[%emt 0:00:39]} 60. Kg3 {[%emt 0:00:13]} Kf5 {[%emt 0:00:17]} 61. Rxh2 {[%emt 0:01:27]} Bxh2+ {[%emt 0:00:11]} 62. Kxh2 {[%emt 0:00:16]} Kf4 {[%emt 0:00:34]} 63. Kg1 {[%emt 0:00:06]} Be2 {[%emt 0:00:08]} 64. Kf2 {[%emt 0:00:20]} Bxf3 {[%emt 0:00:05]} 65. Ke1 {[%emt 0:00:12]} Ke5 0-1

[Event "EYCC Girls-U18 2019"]
[Site "Bratislava"]
[Date "2019.08.10"]
[Round "9.17"]
[White "Verbin, Valentina"]
[Black "Nestorovic, Katarina"]
[Result "1-0"]
[ECO "B85"]
[WhiteElo "1958"]
[BlackElo "2179"]
[Annotator "NA"]
[PlyCount "73"]
[EventDate "2019.08.02"]
[EventType "swiss"]
[EventCountry "SVK"]
[SourceTitle "playchess.com"]
[Source "ChessBase"]
[SourceQuality "1"]
[TimeControl "40/5400+30:1800+30"]

1. e4 {[%emt 0:00:00]} c5 {[%emt 0:00:00]} 2. Nf3 {[%emt 0:00:00]} e6 {[%emt 0:00:00]} 3. d4 {[%emt 0:00:00]} cxd4 {[%emt 0:00:00]} 4. Nxd4 {[%emt 0:00:00]} Nf6 {[%emt 0:00:00]} 5. Nc3 {[%emt 0:00:03]} d6 {[%emt 0:00:03]} 6. Be2 {[%emt 0:00:09]} a6 {[%emt 0:00:51]} 7. O-O {[%emt 0:00:11]} Qc7 {[%emt 0:01:06]} 8. f4 {[%emt 0:00:11]} b5 {[%emt 0:06:28]} 9. Bf3 {[%emt 0:00:15]} Bb7 {[%emt 0:05:09]} 10. e5 {[%emt 0:00:30]} dxe5 {[%emt 0:04:58]} 11. fxe5 {[%emt 0:01:07]} Nfd7 {[%emt 0:00:31]} 12. Bxb7 {[%emt 0:15:25]} Qxb7 {[%emt 0:00:07]} 13. Qh5 {[%emt 0:01:57]} g6 {[%emt 0:07:57]} 14. Qf3 {[%emt 0:01:50]} Qxf3 {[%emt 0:01:16]} 15. Nxf3 {[%emt 0:00:02]} Nc6 {[%emt 0:04:30]} 16. Bf4 {[%emt 0:17:02]} Bg7 {[%emt 0:02:23]} 17. Rfe1 {[%emt 0:01:54]} b4 {[%emt 0:00:53]} 18. Na4 {[%emt 0:03:55]} Rb8 {[%emt 0:02:02]} 19. Rad1 {[%emt 0:05:32]} Rb5 {[%emt 0:11:01]} 20. c4 {[%emt 0:16:39]} bxc3 {[%emt 0:05:13]} 21. Nxc3 {[%emt 0:00:25]} Rxb2 {[%emt 0:01:00]} 22. Ne4 {[%emt 0:00:21]} h6 {[%emt 0:09:23]} 23. Nd6+ {[%emt 0:03:37]} Ke7 {[%emt 0:00:53]} 24. Nxf7 {[%emt 0:07:12]} Rf8 {[%emt 0:00:41]} 25. Bc1 {[%emt 0:01:57]} Rxa2 {[%emt 0:00:19]} 26. Nxh6 {[%emt 0:00:19]} Bxh6 {[%emt 0:08:01]} 27. Bxh6 {[%emt 0:00:22]} Rc8 {[%emt 0:16:44]} 28. Bg5+ {[%emt 0:14:03]} Ke8 {[%emt 0:00:13]} 29. Rd6 {[%emt 0:00:11]} Nc5 {[%emt 0:00:34]} 30. Bf6 {[%emt 0:01:43]} Nd8 {[%emt 0:03:51]} 31. Rc1 {[%emt 0:04:32]} Ne4 {[%emt 0:04:23]} 32. Rcd1 {[%emt 0:03:08]} Nxd6 {[%emt 0:02:44]} 33. exd6 {[%emt 0:00:04]} Kf7 {[%emt 0:00:32]} 34. d7 {[%emt 0:00:48]} Rxg2+ {[%emt 0:02:27]} 35. Kh1 {[%emt 0:01:04]} Rb8 {[%emt 0:00:40]} 36. Bxd8 {[%emt 0:00:21]} Rxd8 {[%emt 0:00:04]} 37. Kxg2 {[%emt 0:00:15]} 1-0

[Event "EYCC Girls-U18 2019"]
[Site "Bratislava"]
[Date "2019.08.10"]
[Round "9.18"]
[White "Ferkova, Dominika"]
[Black "Belluire, Beatrice"]
[Result "1-0"]
[ECO "A58"]
[WhiteElo "2009"]
[BlackElo "1929"]
[Annotator "NA"]
[PlyCount "53"]
[EventDate "2019.08.02"]
[EventType "swiss"]
[EventCountry "SVK"]
[SourceTitle "playchess.com"]
[Source "ChessBase"]
[SourceQuality "1"]
[TimeControl "40/5400+30:1800+30"]

1. d4 {[%emt 0:00:00]} Nf6 {[%emt 0:00:00]} 2. c4 {[%emt 0:00:00]} c5 {[%emt 0:00:00]} 3. d5 {[%emt 0:00:00]} b5 {[%emt 0:00:00]} 4. cxb5 a6 5. bxa6 {[%emt 0:00:10]} g6 {[%emt 0:00:00]} 6. Nc3 {[%emt 0:00:09]} Bg7 {[%emt 0:00:00]} 7. a7 {[%emt 0:00:10]} Rxa7 {[%emt 0:00:10]} 8. e4 {[%emt 0:00:09]} O-O {[%emt 0:08:22]} 9. Nf3 {[%emt 0:00:56]} d6 {[%emt 0:00:57]} 10. Be2 {[%emt 0:00:21]} Ba6 {[%emt 0:02:53]} 11. O-O {[%emt 0:01:38]} Qb6 {[%emt 0:10:01]} 12. a4 {[%emt 0:14:45]} Nbd7 {[%emt 0:05:14]} 13. Ra3 {[%emt 0:06:18]} Rb8 {[%emt 0:10:41]} 14. Bxa6 {[%emt 0:03:41]} Rxa6 {[%emt 0:01:01]} 15. Qc2 {[%emt 0:04:00]} c4 {[%emt 0:07:42]} 16. Nb5 {[%emt 0:05:41]} Nc5 {[%emt 0:01:51]} 17. Be3 {[%emt 0:02:25]} Nfxe4 {[%emt 0:03:42]} 18. Rb1 {[%emt 0:01:39]} Rxa4 {[%emt 0:17:29]} 19. Rxa4 {[%emt 0:04:29]} Qxb5 {[%emt 0:00:04]} 20. Rxc4 {[%emt 0:03:03]} f5 {[%emt 0:06:21]} 21. b4 {[%emt 0:09:36]} Qb7 {[%emt 0:01:32]} 22. Rc1 {[%emt 0:02:41]} Nd7 {[%emt 0:03:02]} 23. Rc8+ {[%emt 0:08:10]} Kf7 {[%emt 0:00:06]} 24. Rxb8 {[%emt 0:02:23]} Nxb8 {[%emt 0:00:04]} 25. Qc8 {[%emt 0:01:35]} Qxc8 {[%emt 0:00:54]} 26. Rxc8 {[%emt 0:00:01]} Na6 {[%emt 0:00:42]} 27. b5 {[%emt 0:00:19]} 1-0

[Event "EYCC Girls-U18 2019"]
[Site "Bratislava"]
[Date "2019.08.10"]
[Round "9.19"]
[White "Golub, Nikolina"]
[Black "Ciocan, Maria-Alexandra"]
[Result "0-1"]
[ECO "A53"]
[WhiteElo "1856"]
[BlackElo "2062"]
[Annotator "NA"]
[PlyCount "138"]
[EventDate "2019.08.02"]
[EventType "swiss"]
[EventCountry "SVK"]
[SourceTitle "playchess.com"]
[Source "ChessBase"]
[SourceQuality "1"]
[TimeControl "40/5400+30:1800+30"]

1. d4 {[%emt 0:00:00]} Nf6 {[%emt 0:00:00]} 2. c4 {[%emt 0:00:00]} d6 {[%emt 0:00:00]} 3. Nc3 {[%emt 0:00:00]} e5 {[%emt 0:00:56]} 4. dxe5 {[%emt 0:01:26]} dxe5 {[%emt 0:00:07]} 5. Qxd8+ {[%emt 0:00:07]} Kxd8 {[%emt 0:00:05]} 6. e4 {[%emt 0:05:45]} Bb4 {[%emt 0:02:19]} 7. Bg5 {[%emt 0:01:44]} Be6 {[%emt 0:00:56]} 8. O-O-O+ {[%emt 0:00:54]} Kc8 {[%emt 0:04:31]} 9. Bxf6 {[%emt 0:05:45]} gxf6 {[%emt 0:00:06]} 10. Nd5 {[%emt 0:00:08]} Bc5 {[%emt 0:01:46]} 11. Nf3 {[%emt 0:07:55]} Nd7 {[%emt 0:02:06]} 12. Ne3 {[%emt 0:02:52]} a5 {[%emt 0:03:59]} 13. Be2 {[%emt 0:02:41]} a4 {[%emt 0:04:15]} 14. a3 {[%emt 0:04:13]} c6 {[%emt 0:07:53]} 15. Rhf1 {[%emt 0:03:21]} Rg8 {[%emt 0:12:37]} 16. Nh4 {[%emt 0:05:05]} Nb6 {[%emt 0:05:50]} 17. Nhf5 {[%emt 0:02:24]} Bxf5 {[%emt 0:02:41]} 18. Nxf5 {[%emt 0:02:50]} Rxg2 {[%emt 0:01:18]} 19. Nh6 {[%emt 0:05:49]} Rxf2 {[%emt 0:07:41]} 20. Rxf2 {[%emt 0:01:21]} Bxf2 {[%emt 0:00:07]} 21. Nxf7 {[%emt 0:01:29]} Kc7 {[%emt 0:03:58]} 22. Nd6 {[%emt 0:22:25]} Be3+ {[%emt 0:01:52]} 23. Kc2 {[%emt 0:00:23]} Rg8 {[%emt 0:00:29]} 24. Bf1 {[%emt 0:01:26]} Bd4 {[%emt 0:04:27]} 25. Nf5 {[%emt 0:01:30]} c5 {[%emt 0:00:15]} 26. h3 {[%emt 0:05:04]} Rg1 {[%emt 0:00:49]} 27. Ne7 {[%emt 0:08:27]} Kd6 {[%emt 0:08:02]} 28. Nf5+ {[%emt 0:01:15]} Ke6 {[%emt 0:00:13]} 29. Rb1 {[%emt 0:01:34]} Nc8 {[%emt 0:07:47]} 30. b3 {[%emt 0:00:20]} axb3+ {[%emt 0:00:15]} 31. Kxb3 {[%emt 0:00:03]} Nd6 {[%emt 0:00:09]} 32. Nxd6 {[%emt 0:02:22]} Kxd6 {[%emt 0:00:04]} 33. Kc2 {[%emt 0:00:20]} Kc6 {[%emt 0:01:08]} 34. a4 {[%emt 0:02:26]} Rg3 {[%emt 0:01:02]} 35. a5 {[%emt 0:00:49]} Rf3 {[%emt 0:04:21]} 36. Rb6+ {[%emt 0:00:28]} Kc7 {[%emt 0:00:05]} 37. Be2 {[%emt 0:02:13]} Rxh3 {[%emt 0:03:36]} 38. Rxf6 {[%emt 0:00:08]} h5 {[%emt 0:01:21]} 39. Rf7+ {[%emt 0:00:27]} Kb8 {[%emt 0:00:17]} 40. a6 {[%emt 0:00:00]} bxa6 {[%emt 0:00:00]} 41. Rf6 {[%emt 0:01:57]} a5 {[%emt 0:10:16]} 42. Ra6 {[%emt 0:00:36]} Rc3+ {[%emt 0:03:01]} 43. Kd2 {[%emt 0:01:28]} Ra3 {[%emt 0:10:13]} 44. Bxh5 {[%emt 0:00:25]} Kb7 {[%emt 0:00:03]} 45. Rg6 {[%emt 0:00:23]} Ra2+ {[%emt 0:01:17]} 46. Kd3 {[%emt 0:05:48]} a4 {[%emt 0:00:16]} 47. Rg7+ {[%emt 0:00:45]} Ka6 {[%emt 0:01:15]} 48. Rg8 {[%emt 0:00:05]} a3 {[%emt 0:01:49]} 49. Ra8+ {[%emt 0:04:06]} Kb7 {[%emt 0:00:25]} 50. Ra4 {[%emt 0:00:03]} Rh2 {[%emt 0:05:56]} 51. Be2 {[%emt 0:00:49]} Rh3+ {[%emt 0:00:15]} 52. Kc2 {[%emt 0:02:33]} Rc3+ {[%emt 0:00:24]} 53. Kd2 {[%emt 0:02:20]} Rb3 {[%emt 0:00:19]} 54. Bd3 {[%emt 0:01:26]} Rb2+ {[%emt 0:00:47]} 55. Bc2 {[%emt 0:00:12]} a2 {[%emt 0:00:24]} 56. Kc1 {[%emt 0:01:05]} Rxc2+ {[%emt 0:00:27]} 57. Kxc2 {[%emt 0:00:01]} a1=Q 58. Rxa1 Bxa1 {[%emt 0:00:50]} 59. Kb3 {[%emt 0:00:32]} Kc6 {[%emt 0:00:21]} 60. Kc2 {[%emt 0:00:47]} Kd6 {[%emt 0:00:14]} 61. Kd3 {[%emt 0:00:06]} Ke6 {[%emt 0:00:29]} 62. Ke3 {[%emt 0:00:07]} Kf6 {[%emt 0:00:09]} 63. Kf3 {[%emt 0:00:16]} Kg5 {[%emt 0:00:19]} 64. Kg3 {[%emt 0:00:05]} Bd4 {[%emt 0:00:13]} 65. Kf3 {[%emt 0:00:05]} Kh4 {[%emt 0:00:08]} 66. Ke2 {[%emt 0:00:37]} Kg3 {[%emt 0:00:06]} 67. Kd2 {[%emt 0:00:05]} Kf2 {[%emt 0:00:13]} 68. Kd3 {[%emt 0:00:14]} Kf3 {[%emt 0:00:06]} 69. Kd2 {[%emt 0:00:01]} Kxe4 {[%emt 0:00:10]} 0-1

[Event "EYCC Girls-U18 2019"]
[Site "Bratislava"]
[Date "2019.08.10"]
[Round "9.20"]
[White "Chrysogelou, Athanasia-Panagiota"]
[Black "Moscicka, Pola"]
[Result "0-1"]
[ECO "E11"]
[WhiteElo "1770"]
[BlackElo "1870"]
[Annotator "NA"]
[PlyCount "76"]
[EventDate "2019.08.02"]
[EventType "swiss"]
[EventCountry "SVK"]
[SourceTitle "playchess.com"]
[Source "ChessBase"]
[SourceQuality "1"]
[TimeControl "40/5400+30:1800+30"]

1. d4 {[%emt 0:00:00]} Nf6 {[%emt 0:00:00]} 2. c4 {[%emt 0:00:00]} e6 {[%emt 0:00:00]} 3. Nf3 {[%emt 0:00:04]} Bb4+ {[%emt 0:00:00]} 4. Nbd2 {[%emt 0:01:47]} d5 {[%emt 0:00:24]} 5. g3 {[%emt 0:02:52]} O-O {[%emt 0:02:51]} 6. Bg2 {[%emt 0:01:27]} b6 {[%emt 0:00:46]} 7. O-O {[%emt 0:01:11]} Bb7 {[%emt 0:00:25]} 8. Qc2 {[%emt 0:01:03]} Be7 {[%emt 0:02:55]} 9. b3 {[%emt 0:01:47]} c5 {[%emt 0:02:23]} 10. Bb2 {[%emt 0:03:09]} Nbd7 {[%emt 0:00:33]} 11. Rfd1 {[%emt 0:02:00]} Rc8 {[%emt 0:00:45]} 12. dxc5 {[%emt 0:06:05]} bxc5 {[%emt 0:00:49]} 13. cxd5 {[%emt 0:02:32]} exd5 {[%emt 0:00:25]} 14. Nh4 {[%emt 0:04:53]} Re8 {[%emt 0:03:34]} 15. Re1 {[%emt 0:07:29]} Qb6 {[%emt 0:11:39]} 16. Nf5 {[%emt 0:06:24]} Bf8 {[%emt 0:00:46]} 17. e4 {[%emt 0:05:13]} g6 {[%emt 0:00:52]} 18. Nh4 {[%emt 0:01:05]} d4 {[%emt 0:03:00]} 19. Nc4 {[%emt 0:03:20]} Qc7 {[%emt 0:01:29]} 20. Bc1 {[%emt 0:03:32]} Ne5 {[%emt 0:03:06]} 21. Bf4 {[%emt 0:02:23]} Nfd7 {[%emt 0:00:17]} 22. Bh3 {[%emt 0:04:56]} Bg7 {[%emt 0:04:44]} 23. Kg2 {[%emt 0:03:43]} f5 {[%emt 0:06:43]} 24. f3 {[%emt 0:06:52]} fxe4 {[%emt 0:05:07]} 25. fxe4 {[%emt 0:00:10]} d3 {[%emt 0:03:27]} 26. Qc3 {[%emt 0:04:03]} Rcd8 {[%emt 0:04:40]} 27. Rad1 {[%emt 0:06:01]} Kh8 {[%emt 0:04:22]} 28. Bxd7 {[%emt 0:04:34]} Rxd7 {[%emt 0:00:49]} 29. Qc1 {[%emt 0:03:01]} Rd4 {[%emt 0:05:27]} 30. Nf3 {[%emt 0:08:02]} Rxe4 {[%emt 0:01:14]} 31. Ncxe5 {[%emt 0:01:32]} Bxe5 {[%emt 0:00:24]} 32. Bxe5+ {[%emt 0:00:05]} R4xe5 {[%emt 0:00:31]} 33. Rxe5 {[%emt 0:02:29]} Qxe5 {[%emt 0:00:33]} 34. Rf1 {[%emt 0:02:16]} Qe2+ {[%emt 0:01:03]} 35. Kg1 {[%emt 0:00:40]} Bxf3 {[%emt 0:00:40]} 36. Qc3+ {[%emt 0:00:10]} Kg8 {[%emt 0:00:30]} 37. Qc4+ {[%emt 0:00:07]} Kg7 {[%emt 0:00:21]} 38. Qc3+ {[%emt 0:00:42]} Kh6 {[%emt 0:00:50]} 0-1

[Event "EYCC Girls-U18 2019"]
[Site "Bratislava"]
[Date "2019.08.10"]
[Round "9.21"]
[White "Buchta, Agnieszka"]
[Black "Koubova, Anna Marie"]
[Result "0-1"]
[ECO "B40"]
[WhiteElo "1818"]
[BlackElo "2094"]
[Annotator "NA RC"]
[PlyCount "90"]
[EventDate "2019.08.02"]
[EventType "swiss"]
[EventCountry "SVK"]
[SourceTitle "playchess.com"]
[Source "ChessBase"]
[SourceQuality "1"]
[TimeControl "40/5400+30:1800+30"]

1. e4 {[%emt 0:01:51]} c5 {[%emt 0:00:00]} 2. Nf3 {[%emt 0:00:12]} e6 {[%emt 0:00:00]} 3. d4 {[%emt 0:00:19]} cxd4 {[%emt 0:00:00]} 4. Nxd4 {[%emt 0:00:05]} Nf6 {[%emt 0:00:03]} 5. Nc3 {[%emt 0:00:31]} Nc6 {[%emt 0:00:05]} 6. Be2 {[%emt 0:00:24]} Bb4 {[%emt 0:00:51]} 7. O-O {[%emt 0:00:44]} O-O {[%emt 0:03:41]} 8. Nxc6 {[%emt 0:00:54]} bxc6 {[%emt 0:01:36]} 9. e5 {[%emt 0:04:38]} Nd5 {[%emt 0:00:33]} 10. Ne4 {[%emt 0:01:40]} Qc7 {[%emt 0:02:33]} 11. Nd6 {[%emt 0:18:31]} a5 {[%emt 0:16:42]} 12. c4 {[%emt 0:08:55]} Ne7 {[%emt 0:00:18]} 13. Be3 {[%emt 0:06:26]} Nf5 {[%emt 0:03:52]} 14. Nxf5 {[%emt 0:19:15]} exf5 {[%emt 0:00:08]} 15. c5 {[%emt 0:01:19]} Qxe5 {[%emt 0:04:47]} 16. Bd4 {[%emt 0:04:53]} Qe7 {[%emt 0:03:08]} 17. Rc1 {[%emt 0:10:39]} d6 {[%emt 0:01:51]} 18. cxd6 {[%emt 0:03:11]} Bxd6 {[%emt 0:02:08]} 19. Bf3 {[%emt 0:02:05]} Bb7 {[%emt 0:04:52]} 20. Bxc6 {[%emt 0:01:20]} Bxc6 {[%emt 0:15:01]} 21. Rxc6 {[%emt 0:00:02]} Rad8 {[%emt 0:00:19]} 22. Qa4 {[%emt 0:09:39]} Bxh2+ {[%emt 0:09:26]} 23. Kxh2 {[%emt 0:00:18]} Qh4+ {[%emt 0:00:11]} 24. Kg1 {[%emt 0:00:30]} Rxd4 {[%emt 0:01:06]} 25. Qc2 {[%emt 0:03:28]} f4 {[%emt 0:09:37]} 26. Rc4 {[%emt 0:00:37]} Rd5 {[%emt 0:03:16]} 27. f3 {[%emt 0:00:33]} Rfd8 {[%emt 0:03:16]} 28. Rc8 {[%emt 0:00:26]} h6 {[%emt 0:02:41]} 29. Rc1 {[%emt 0:00:30]} Qe7 {[%emt 0:05:58]} 30. Qb3 {[%emt 0:00:31]} Kh7 {[%emt 0:02:31]} 31. Rxd8 {[%emt 0:00:31]} Rxd8 {[%emt 0:00:32]} 32. Qc2+ {[%emt 0:00:24]} Kg8 {[%emt 0:02:16]} 33. Rd1 {[%emt 0:00:30]} Qe3+ {[%emt 0:00:39]} 34. Kf1 {[%emt 0:00:34]} Re8 {[%emt 0:01:27]} 35. Qf2 {[%emt 0:00:33]} Qe6 {[%emt 0:00:59]} 36. Qd2 {[%emt 0:00:26]} Qxa2 {[%emt 0:00:56]} 37. Qd7 {[%emt 0:00:33]} Qc4+ {[%emt 0:00:32]} 38. Kg1 {[%emt 0:00:20]} Qe6 {[%emt 0:00:26]} 39. Qa4 {[%emt 0:00:39]} Qe3+ {[%emt 0:00:34]} 40. Kf1 {[%emt 0:00:00]} Qe2+ {[%emt 0:00:00]} 41. Kg1 {[%emt 0:01:16]} Rc8 {[%emt 0:06:04]} 42. Kh2 {[%emt 0:14:11]} Rc2 {[%emt 0:04:40]} 43. Rg1 {[%emt 0:01:42]} Qxf3 {[%emt 0:00:40]} 44. Qe8+ {[%emt 0:07:40]} Kh7 {[%emt 0:00:15]} 45. Qxf7 {[%emt 0:00:42]} Qg3+ {[%emt 0:00:10]} 0-1

[Event "EYCC Girls-U18 2019"]
[Site "Bratislava"]
[Date "2019.08.10"]
[Round "9.22"]
[White "Kouta, Antonia"]
[Black "Duson, Robin"]
[Result "0-1"]
[ECO "B48"]
[WhiteElo "1762"]
[BlackElo "1936"]
[Annotator "NA RC"]
[PlyCount "62"]
[EventDate "2019.08.02"]
[EventType "swiss"]
[EventCountry "SVK"]
[SourceTitle "playchess.com"]
[Source "ChessBase"]
[SourceQuality "1"]
[TimeControl "40/5400+30:1800+30"]

1. e4 {[%emt 0:00:00]} c5 {[%emt 0:00:00]} 2. Nf3 {[%emt 0:00:00]} e6 {[%emt 0:00:00]} 3. d4 {[%emt 0:00:00]} cxd4 {[%emt 0:00:03]} 4. Nxd4 {[%emt 0:00:02]} Nc6 {[%emt 0:00:43]} 5. Nc3 {[%emt 0:02:03]} Qc7 {[%emt 0:00:32]} 6. Be3 {[%emt 0:00:22]} a6 {[%emt 0:00:19]} 7. Qd2 {[%emt 0:00:58]} Nf6 {[%emt 0:01:17]} 8. f4 {[%emt 0:02:26]} Bb4 {[%emt 0:08:08]} 9. Bd3 {[%emt 0:04:56]} Ng4 {[%emt 0:09:33]} 10. Bg1 {[%emt 0:02:19]} e5 {[%emt 0:03:39]} 11. Nxc6 {[%emt 0:12:30]} dxc6 {[%emt 0:03:46]} 12. a3 {[%emt 0:11:27]} Be7 {[%emt 0:03:26]} 13. f5 {[%emt 0:02:08]} O-O {[%emt 0:08:45]} 14. Na4 {[%emt 0:06:18]} b5 {[%emt 0:03:37]} 15. Nc5 {[%emt 0:06:25]} Nf6 {[%emt 0:01:49]} 16. O-O-O {[%emt 0:04:51]} a5 {[%emt 0:06:14]} 17. Kb1 {[%emt 0:04:44]} Rd8 {[%emt 0:03:52]} 18. Qe2 {[%emt 0:04:54]} Nd7 {[%emt 0:01:59]} 19. Nxd7 {[%emt 0:01:00]} Bxd7 {[%emt 0:00:25]} 20. Be3 {[%emt 0:02:11]} Rdb8 {[%emt 0:03:08]} 21. Qf2 {[%emt 0:01:52]} c5 {[%emt 0:02:16]} 22. f6 {[%emt 0:02:04]} gxf6 {[%emt 0:04:06]} 23. c4 {[%emt 0:05:31]} b4 {[%emt 0:01:43]} 24. Ka2 {[%emt 0:02:00]} a4 {[%emt 0:02:36]} 25. Rb1 {[%emt 0:00:58]} Be6 {[%emt 0:02:15]} 26. g4 {[%emt 0:01:47]} Qa5 {[%emt 0:05:06]} 27. Bd2 {[%emt 0:01:37]} Rd8 {[%emt 0:01:04]} 28. Qe2 {[%emt 0:04:02]} Rxd3 {[%emt 0:01:06]} 29. Qxd3 {[%emt 0:00:34]} Rd8 {[%emt 0:00:12]} 30. Qe2 {[%emt 0:00:44]} Rxd2 {[%emt 0:00:41]} 31. Qf1 {[%emt 0:00:51]} bxa3 {[%emt 0:00:32]} 0-1

[Event "EYCC Girls-U18 2019"]
[Site "Bratislava"]
[Date "2019.08.10"]
[Round "9.23"]
[White "Olde, Grete"]
[Black "Kocyigit, Buse Naz"]
[Result "0-1"]
[ECO "B22"]
[WhiteElo "1955"]
[BlackElo "2045"]
[Annotator "NA RC"]
[PlyCount "76"]
[EventDate "2019.08.02"]
[EventType "swiss"]
[EventCountry "SVK"]
[SourceTitle "playchess.com"]
[Source "ChessBase"]
[SourceQuality "1"]
[TimeControl "40/5400+30:1800+30"]

1. e4 {[%emt 0:00:00]} c5 {[%emt 0:00:00]} 2. c3 {[%emt 0:00:00]} d5 {[%emt 0:00:00]} 3. exd5 {[%emt 0:00:00]} Qxd5 {[%emt 0:00:02]} 4. d4 {[%emt 0:00:10]} Nc6 {[%emt 0:00:03]} 5. Nf3 {[%emt 0:00:09]} Bg4 {[%emt 0:01:08]} 6. dxc5 {[%emt 0:00:38]} Qxc5 {[%emt 0:07:11]} 7. Be3 {[%emt 0:03:28]} Qh5 {[%emt 0:00:51]} 8. Nbd2 {[%emt 0:04:00]} Nf6 {[%emt 0:05:24]} 9. Qa4 {[%emt 0:08:43]} e5 {[%emt 0:04:59]} 10. Bb5 {[%emt 0:13:55]} Bd7 {[%emt 0:00:55]} 11. Nc4 {[%emt 0:04:32]} e4 {[%emt 0:11:10]} 12. Nd4 {[%emt 0:06:58]} Nxd4 {[%emt 0:13:27]} 13. Bxd7+ {[%emt 0:01:15]} Nxd7 {[%emt 0:00:02]} 14. Bxd4 {[%emt 0:00:29]} b5 {[%emt 0:14:27]} 15. Qa5 {[%emt 0:07:42]} Be7 {[%emt 0:00:18]} 16. Ne5 {[%emt 0:01:37]} f6 {[%emt 0:04:06]} 17. Nxd7 {[%emt 0:10:09]} Kxd7 {[%emt 0:00:03]} 18. a4 {[%emt 0:01:15]} Rhb8 {[%emt 0:00:44]} 19. O-O {[%emt 0:02:44]} Bd6 {[%emt 0:03:57]} 20. g3 {[%emt 0:02:02]} Qf3 {[%emt 0:04:35]} 21. axb5 {[%emt 0:03:07]} h5 {[%emt 0:00:08]} 22. c4 {[%emt 0:00:56]} h4 {[%emt 0:01:23]} 23. Qc3 {[%emt 0:00:58]} Qh5 {[%emt 0:02:13]} 24. Rfd1 {[%emt 0:04:22]} Rh8 {[%emt 0:03:44]} 25. Qd2 {[%emt 0:02:12]} Ke8 {[%emt 0:05:18]} 26. Re1 {[%emt 0:09:24]} hxg3 {[%emt 0:01:15]} 27. Rxe4+ {[%emt 0:00:37]} Kf7 {[%emt 0:00:13]} 28. fxg3 {[%emt 0:00:19]} Bxg3 {[%emt 0:00:16]} 29. Re2 {[%emt 0:01:22]} Bf4 {[%emt 0:03:24]} 30. Be3 {[%emt 0:02:24]} Qg4+ {[%emt 0:04:45]} 31. Rg2 {[%emt 0:02:42]} Bxh2+ {[%emt 0:00:05]} 32. Kf1 {[%emt 0:00:07]} Qxc4+ {[%emt 0:00:08]} 33. Ke1 {[%emt 0:01:00]} Rhd8 {[%emt 0:04:03]} 34. Rxa7+ {[%emt 0:04:38]} Rxa7 {[%emt 0:00:15]} 35. Qxd8 {[%emt 0:00:02]} Ra1+ {[%emt 0:05:31]} 36. Kd2 {[%emt 0:00:01]} Qb4+ {[%emt 0:00:39]} 37. Ke2 {[%emt 0:01:29]} Qxb5+ {[%emt 0:00:14]} 38. Qd3 {[%emt 0:01:59]} Re1+ {[%emt 0:00:55]} 0-1